bitfinex/quotes_SOLUSD_20260214
["timestamp","ask_amount","ask_price","bid_price","bid_amount"]
[1771060218986,5.81138272,86.41,86.371,11.57796019]
[1771060219190,1.42016943,86.407,86.371,11.57796019]
[1771060219490,1.42016943,86.4,86.371,11.57796019]
[1771060219692,7.23155215,86.4,86.371,11.57796019]
[1771060219994,1.42016943,86.4,86.371,11.57796019]
[1771060220286,11.57300249,86.408,86.371,11.57796019]
[1771060220287,12.99317192,86.408,86.371,11.57796019]
[1771060220494,17.3828901,86.42,86.38,5.81138272]
[1771060220693,5.81138272,86.42,86.38,5.81138272]
[1771060220876,5.81138272,86.42,86.371,40.52286067]
[1771060221076,7.23155215,86.42,86.371,40.52286067]
[1771060221293,1.42016943,86.419,86.371,40.52286067]
[1771060221486,1.42016943,86.418,86.371,40.52286067]
[1771060221888,1.42016943,86.409,86.371,40.52286067]
[1771060222079,1.42016943,86.399,86.371,40.52286067]
[1771060223087,1.42016943,86.379,86.357,21.23041906]
[1771060223394,1.42016943,86.379,86.287,46.35641272]
[1771060223395,1.42016943,86.369,86.3,43.13138272]
[1771060223600,1.42016943,86.349,86.3,43.13138272]
[1771060223902,1.42016943,86.329,86.301,11.58735124]
[1771060224123,1.42016943,86.357,86.301,11.58735124]
[1771060224399,1.42016943,86.357,86.31,5.81138272]
[1771060224979,1.42016943,86.357,86.31,17.26865504]
[1771060225186,1.42016943,86.349,86.311,11.58600873]
[1771060226381,1.42016943,86.348,86.311,11.58600873]
[1771060227004,17.26865504,86.33,86.305,11.58670494]
[1771060227194,1.42016943,86.329,86.293,11.58842548]
[1771060228001,1.42016943,86.328,86.293,11.58842548]
[1771060228203,1.42016943,86.319,86.293,11.58842548]
[1771060228608,1.42016943,86.299,86.263,11.59235743]
[1771060229600,1.42016943,86.299,86.238,43.4]
[1771060229601,1.42016943,86.289,86.251,11.59406847]
[1771060230104,1.42016943,86.279,86.241,11.59541285]
[1771060231791,1.42016943,86.29,86.26,17.26865504]
[1771060232289,1.42016943,86.289,86.25,17.26865504]
[1771060232501,1.42016943,86.288,86.25,17.26865504]
[1771060233387,11.58896267,86.289,86.241,11.59541285]
[1771060233388,1.42016943,86.279,86.241,11.59541285]
[1771060233707,1.42016943,86.277,86.241,11.59541285]
[1771060233907,1.42016943,86.288,86.25,17.26865504]
[1771060234084,11.58806205,86.296,86.26,17.26865504]
[1771060234283,13.00823148,86.296,86.26,17.26865504]
[1771060234484,1.42016943,86.296,86.26,17.26865504]
[1771060235706,1.42016943,86.305,86.27,17.26865504]
[1771060236020,1.42016943,86.304,86.27,17.26865504]
[1771060236609,1.42016943,86.304,86.261,40.57453541]
[1771060236809,1.42016943,86.304,86.27,17.26865504]
[1771060237185,1.42016943,86.313,86.28,17.26865504]
[1771060237602,1.42016943,86.313,86.281,11.5900372]
[1771060239126,1.42016943,86.321,86.281,11.5900372]
[1771060239616,17.26865504,86.32,86.281,11.5900372]
[1771060239802,17.26865504,86.32,86.251,57.96978662]
[1771060239803,17.26865504,86.3,86.26,17.26865504]
[1771060240206,17.26865504,86.32,86.28,17.26865504]
[1771060240409,40.54412698,86.326,86.29,17.26865504]
[1771060240892,40.54412698,86.326,86.28,17.26865504]
[1771060241100,17.26865504,86.3,86.26,17.26865504]
[1771060241495,1.38940316,86.299,86.26,17.26865504]
[1771060242714,1.38940316,86.299,86.261,11.5927244]
[1771060243021,1.38940316,86.297,86.261,11.5927244]
[1771060243792,1.38940316,86.289,86.255,11.59340933]
[1771060244100,1.38940316,86.279,86.245,11.59482689]
[1771060244699,17.26865504,86.28,86.245,11.59482689]
[1771060244700,1.38940316,86.277,86.245,11.59482689]
[1771060247009,1.38940316,86.275,86.24,17.29995146]
[1771060248001,1.38940316,86.275,86.241,11.59541285]
[1771060248201,1.38940316,86.273,86.241,11.59541285]
[1771060249328,94.95995146,86.28,86.228,28.99261536]
[1771060249329,1.38940316,86.271,86.23,17.29995146]
[1771060249516,1.38940316,86.259,86.22,17.49995146]
[1771060249703,1.38940316,86.259,86.224,11.59766812]
[1771060253127,1.38940316,86.257,86.23,17.29995146]
[1771060254151,1.38940316,86.257,86.224,11.59766812]
[1771060254628,1.38940316,86.255,86.224,11.59766812]
[1771060256113,11.59366522,86.254,86.224,11.59766812]
[1771060256313,1.38940316,86.253,86.224,11.59766812]
[1771060257329,1.38940316,86.282,86.24,17.29995146]
[1771060257629,1.38940316,86.28,86.26,17.29995146]
[1771060257927,1.38940316,86.299,86.26,17.29995146]
[1771060258130,1.38940316,86.296,86.27,17.29995146]
[1771060258335,1.38940316,86.296,86.26,17.29995146]
[1771060258916,34.4438788,86.304,86.221,40.59335892]
[1771060258917,1.38940316,86.269,86.221,40.59335892]
[1771060259239,1.38940316,86.269,86.23,17.29995146]
[1771060260029,11.59178374,86.268,86.231,11.59675754]
[1771060260234,1.38940316,86.267,86.231,11.59675754]
[1771060260634,1.38940316,86.267,86.221,28.99525637]
[1771060260635,1.38940316,86.267,86.225,11.59750558]
[1771060260832,1.38940316,86.249,86.22,0.2]
[1771060261014,1.38940316,86.249,86.221,11.59810255]
[1771060261738,1.38940316,86.249,86.22,0.2]
[1771060262137,1.38940316,86.247,86.22,0.2]
[1771060264329,1.35791474,86.271,86.231,0.1994473]
[1771060264645,1.35791474,86.259,86.222,0.19914568]
[1771060265024,17.29995146,86.25,86.212,0.19914568]
[1771060265222,17.29995146,86.25,86.21,11.79955838]
[1771060265223,1.35791474,86.249,86.21,11.79955838]
[1771060266531,1.35791474,86.239,86.21,0.2]
[1771060266731,1.35791474,86.239,86.21,0.39862025]
[1771060266937,12.95148397,86.255,86.221,0.19862025]
[1771060267137,1.35791474,86.254,86.221,0.19862025]
[1771060267755,1.35791474,86.272,86.241,0.19836313]
[1771060268747,90.6282206,86.279,86.251,0.1980892]
[1771060268954,1.35791474,86.279,86.251,0.1980892]
[1771060269530,1.35791474,86.277,86.242,11.7930999]
[1771060269746,1.35791474,86.277,86.231,0.1978215]
[1771060269946,1.35791474,86.269,86.232,11.59662306]
[1771060270838,1.35791474,86.267,86.232,11.79418367]
[1771060271353,1.35791474,86.267,86.233,0.19756061]
[1771060273352,1.35791474,86.259,86.22,28.89807287]
[1771060273531,1.35791474,86.239,86.2,0.2]
[1771060273856,1.35791474,86.239,86.203,0.19679294]
[1771060274065,1.35791474,86.239,86.209,11.59962514]
[1771060274564,1.35791474,86.219,86.2,0.2]
[1771060275659,1.35791474,86.218,86.2,0.2]
[1771060277956,1.35791474,86.216,86.19,0.2]
[1771060278752,1.35791474,86.216,86.18,11.80356891]
[1771060278753,1.35791474,86.209,86.18,0.2]
[1771060279457,1.35791474,86.199,86.18,0.2]
[1771060279638,1.35791474,86.199,86.17,0.2]
[1771060279639,1.35791474,86.189,86.17,0.2]
[1771060280356,1.35791474,86.187,86.17,0.2]
[1771060281130,1.35791474,86.179,86.15,0.2]
[1771060281856,1.35791474,86.177,86.15,0.2]
[1771060282050,1.35791474,86.169,86.15,0.2]
[1771060282560,1.35791474,86.169,86.14,0.2]
[1771060283062,1.35791474,86.172,86.14,0.2]
[1771060283272,1.35791474,86.177,86.141,1.19714634]
[1771060283441,79.03791474,86.174,86.141,1.19714634]
[1771060283767,1.35791474,86.173,86.141,1.19714634]
[1771060284354,1.35791474,86.183,86.151,1.19767036]
[1771060284541,1.35791474,86.179,86.142,11.60873905]
[1771060284740,1.35791474,86.179,86.143,1.19818455]
[1771060287963,11.60317747,86.184,86.151,1.19968542]
[1771060288667,6.06210422,86.183,86.151,1.19968542]
[1771060289055,1.35791474,86.182,86.153,1.20019349]
[1771060289256,1.35791474,86.182,86.15,17.29995146]
[1771060289257,1.35791474,86.181,86.15,17.29995146]
[1771060289959,1.35791474,86.181,86.151,11.60752632]
[1771060291168,11.60362032,86.18,86.151,11.60752632]
[1771060291352,1.35194297,86.179,86.146,1.20019349]
[1771060291953,1.35194297,86.179,86.148,1.2021115]
[1771060293965,11.60388962,86.178,86.148,1.2021115]
[1771060294168,1.35194297,86.177,86.148,1.2021115]
[1771060294347,1.35194297,86.176,86.148,1.2021115]
[1771060294855,1.35194297,86.176,86.151,1.20349571]
[1771060295160,1.35194297,86.176,86.13,0.2]
[1771060295161,1.35194297,86.176,86.142,1.20349571]
[1771060295354,1.35194297,86.169,86.141,11.60880481]
[1771060295555,1.35194297,86.169,86.136,11.60952131]
[1771060295760,1.35194297,86.169,86.134,1.20349571]
[1771060296758,1.35194297,86.167,86.135,11.60968247]
[1771060296962,1.35194297,86.159,86.131,1.20440559]
[1771060297145,1.35194297,86.157,86.131,1.20440559]
[1771060297763,17.29995146,86.15,86.13,0.2]
[1771060297949,1.35194297,86.149,86.13,0.2]
[1771060298353,1.35194297,86.149,86.114,1.20483536]
[1771060298354,1.35194297,86.149,86.115,11.61237879]
[1771060298555,1.35194297,86.147,86.115,11.61237879]
[1771060298950,1.35194297,86.147,86.114,1.20483536]
[1771060298951,1.35194297,86.139,86.114,1.20483536]
[1771060299343,1.35194297,86.139,86.11,11.81301213]
[1771060299746,1.27297143,86.137,86.11,11.81301213]
[1771060300149,1.27297143,86.137,86.11,0.2]
[1771060300355,17.29995146,86.12,86.11,0.2]
[1771060300563,1.27297143,86.123,86.11,0.2]
[1771060302075,17.29995146,86.12,86.11,0.2]
[1771060302254,1.27297143,86.123,86.11,0.2]
[1771060302675,17.29995146,86.12,86.11,0.2]
[1771060303171,18.57292289,86.12,86.11,0.2]
[1771060303349,1.27297143,86.119,86.1,0.2]
[1771060303548,1.27297143,86.119,86.08,1.58307423]
[1771060303549,1.27297143,86.109,86.08,1.58307423]
[1771060304449,1.27297143,86.148,86.091,1.38307423]
[1771060304651,1.27297143,86.129,86.091,1.38307423]
[1771060304847,17.29995146,86.13,86.091,1.38307423]
[1771060305074,1.27297143,86.137,86.091,1.38307423]
[1771060305455,1.27297143,86.129,86.091,1.38307423]
[1771060305865,77.76,86.128,86.093,1.38307423]
[1771060306068,1.27297143,86.119,86.093,1.38307423]
[1771060306251,89.37062604,86.128,86.093,1.38307423]
[1771060306252,1.27297143,86.127,86.093,1.38307423]
[1771060306661,77.76,86.128,86.093,1.38307423]
[1771060307174,1.27297143,86.127,86.093,1.38307423]
[1771060308378,1.27297143,86.125,86.095,1.38307423]
[1771060308759,1.27297143,86.123,86.095,1.38307423]
[1771060309063,1.27297143,86.119,86.089,12.99885677]
[1771060309251,1.27297143,86.119,86.09,1.38307423]
[1771060309456,77.76,86.118,86.09,1.38307423]
[1771060309670,1.27297143,86.117,86.09,1.38307423]
[1771060310267,1.27297143,86.117,86.092,1.38307423]
[1771060310676,77.78,86.118,86.092,1.38307423]
[1771060310972,77.78,86.118,86.081,1.38307423]
[1771060310973,1.27297143,86.116,86.081,1.38307423]
[1771060311160,1.27297143,86.116,86.082,1.38307423]
[1771060311562,1.27297143,86.11,86.082,1.38307423]
[1771060311859,77.78,86.118,86.082,1.38307423]
[1771060312070,77.78,86.124,86.091,1.38307423]
[1771060312680,79.05297143,86.124,86.093,1.38307423]
[1771060312873,11.61130011,86.123,86.093,1.38307423]
[1771060313183,89.39130011,86.123,86.093,1.38307423]
[1771060313873,90.66427154,86.123,86.093,1.38307423]
[1771060314071,1.27297143,86.122,86.093,1.38307423]
[1771060314580,1.27297143,86.119,86.086,1.38307423]
[1771060315772,1.27297143,86.117,86.088,1.38307423]
[1771060317483,1.27297143,86.117,86.09,1.38307423]
[1771060317785,1.27297143,86.115,86.089,11.61588588]
[1771060318468,1.27297143,86.115,86.09,1.38307423]
[1771060319186,1.27297143,86.115,86.089,11.61588588]
[1771060319375,1.27297143,86.115,86.09,1.38307423]
[1771060320078,83.84649234,86.123,86.092,1.38307423]
[1771060320378,1.27297143,86.121,86.092,1.38307423]
[1771060321577,1.30653889,86.12,86.092,1.38307423]
[1771060321994,1.30653889,86.12,86.091,11.61561603]
[1771060321995,1.30653889,86.119,86.091,11.61561603]
[1771060322192,1.30653889,86.117,86.086,1.35309114]
[1771060322482,1.30653889,86.109,86.086,1.35309114]
[1771060322668,1.30653889,86.109,86.08,1.55309114]
[1771060323569,1.30653889,86.109,86.082,1.35309114]
[1771060325765,1.30653889,86.109,86.08,0.2]
[1771060325766,1.30653889,86.109,86.084,1.35309114]
[1771060326371,1.30653889,86.108,86.081,11.61691601]
[1771060327901,1.30653889,86.108,86.082,1.35309114]
[1771060328076,1.30653889,86.106,86.081,11.61691601]
[1771060329069,1.30653889,86.104,86.08,0.2]
[1771060329498,1.30653889,86.104,86.082,1.35309114]
[1771060329973,1.30653889,86.104,86.08,0.2]
[1771060331186,1.30653889,86.102,86.08,0.2]
[1771060331380,1.30653889,86.089,86.07,0.2]
[1771060331582,1.30653889,86.087,86.055,1.35309114]
[1771060331781,1.30653889,86.085,86.049,1.35309114]
[1771060331993,1.30653889,86.085,86.067,25.83116368]
[1771060332188,1.30653889,86.085,86.067,25.25157158]
[1771060332697,1.30653889,86.085,86.051,1.40465667]
[1771060332999,5.83530983,86.08,86.051,1.40465667]
[1771060333385,40.65748968,86.085,86.051,1.40465667]
[1771060333597,5.83530983,86.08,86.051,1.40465667]
[1771060333906,5.83530983,86.08,86.03,6.03530983]
[1771060333907,77.98,86.095,86.061,1.40465667]
[1771060334911,29.03372025,86.107,86.071,1.40465667]
[1771060335087,89.59359254,86.106,86.071,1.40465667]
[1771060335392,89.59359254,86.106,86.062,11.6195301]
[1771060335393,5.83530983,86.1,86.064,1.40465667]
[1771060336794,118.62757391,86.106,86.071,1.40465667]
[1771060337403,78.0,86.105,86.071,1.40465667]
[1771060337702,0.02054284,86.104,86.071,1.40465667]
[1771060338219,0.02054284,86.104,86.071,0.19202976]
[1771060339005,0.02054284,86.104,86.065,11.61900073]
[1771060340014,1.24152667,86.099,86.061,11.61966512]
[1771060340307,1.24152667,86.099,86.062,1.35309114]
[1771060341205,1.24564326,86.097,86.064,1.35309114]
[1771060342798,1.25373537,86.095,86.064,1.35309114]
[1771060343690,1.25373537,86.095,86.066,1.35309114]
[1771060344598,11.61494146,86.096,86.071,1.35309114]
[1771060345010,1.2616167,86.119,86.08,5.83530983]
[1771060345201,1.30653889,86.117,86.072,40.66363044]
[1771060345397,1.30653889,86.117,86.072,11.61818012]
[1771060345615,1.30653889,86.109,86.072,11.61818012]
[1771060345806,1.30653889,86.089,86.051,11.62101544]
[1771060346113,1.30653889,86.087,86.051,11.62101544]
[1771060347107,1.30653889,86.085,86.054,1.35309114]
[1771060347310,1.30653889,86.079,86.05,0.2]
[1771060348902,11.61737029,86.078,86.05,0.2]
[1771060349104,1.30653889,86.077,86.05,0.2]
[1771060349507,1.30653889,86.075,86.05,0.2]
[1771060350712,1.30653889,86.075,86.05,1.55309114]
[1771060351413,13.04820835,86.074,86.05,1.55309114]
[1771060351731,11.61605518,86.088,86.061,1.38913208]
[1771060352424,1.43029818,86.087,86.061,1.38913208]
[1771060353098,1.43029818,86.085,86.061,1.38913208]
[1771060354214,11.61561603,86.091,86.063,1.38913208]
[1771060354420,1.43029818,86.104,86.071,1.38913208]
[1771060354612,78.14,86.103,86.081,1.38913208]
[1771060354816,11.6136154,86.106,86.081,1.38913208]
[1771060356008,1.43029818,86.105,86.081,1.38913208]
[1771060356605,11.6138623,86.104,86.081,1.38913208]
[1771060356921,1.43029818,86.103,86.081,1.38913208]
[1771060357810,11.6138623,86.104,86.081,1.38913208]
[1771060358405,78.24,86.103,86.081,1.38913208]
[1771060358805,79.67029818,86.103,86.081,1.38913208]
[1771060359014,1.43029818,86.102,86.081,1.38913208]
[1771060359213,11.61426696,86.101,86.081,1.38913208]
[1771060359609,1.39975572,86.1,86.063,11.61939509]
[1771060359815,1.39975572,86.1,86.071,1.41050094]
[1771060360609,17.68100344,86.11,86.091,1.41050094]
[1771060361627,6.06786242,86.11,86.091,1.41050094]
[1771060361827,89.89255941,86.114,86.091,1.41050094]
[1771060362714,78.28,86.114,86.093,1.41050094]
[1771060363016,78.34,86.119,86.095,1.41050094]
[1771060363424,29.71109829,86.122,86.095,1.41050094]
[1771060363736,109.47085401,86.122,86.095,1.41050094]
[1771060364105,108.07109829,86.122,86.095,1.41050094]
[1771060365717,29.71109829,86.122,86.101,1.41050094]
[1771060366826,78.42,86.124,86.101,1.41050094]
[1771060368135,11.61130011,86.123,86.101,1.41050094]
[1771060370331,1.39975572,86.122,86.101,1.41050094]
[1771060373242,1.39975572,86.12,86.101,1.41050094]
[1771060375222,1.39975572,86.12,86.095,1.41050094]
[1771060375538,1.39975572,86.109,86.074,1.41050094]
[1771060375742,1.39975572,86.107,86.074,1.41050094]
[1771060376421,1.39975572,86.105,86.074,1.41050094]
[1771060377341,1.39975572,86.103,86.074,1.41050094]
[1771060378517,1.39975572,86.101,86.075,1.41050094]
[1771060379540,78.64,86.104,86.081,1.41050094]
[1771060380346,11.61399718,86.103,86.081,1.41050094]
[1771060380747,11.61399718,86.103,85.946,25.46326207]
[1771060380748,1.39975572,86.126,86.091,1.41050094]
[1771060381046,78.68,86.116,86.101,1.41050094]
[1771060383247,13.06517054,86.129,86.111,1.42926646]
[1771060383440,1.45467931,86.128,86.111,1.42926646]
[1771060383633,1.45467931,86.128,86.103,1.42926646]
[1771060385129,6.06653263,86.13,86.103,1.42926646]
[1771060385130,1.45467931,86.126,86.103,1.42926646]
[1771060385328,1.45467931,86.126,86.103,13.04315665]
[1771060385527,1.45467931,86.126,86.104,1.42926646]
[1771060386243,6.06653263,86.13,86.104,1.42926646]
[1771060386637,11.61049123,86.129,86.104,1.42926646]
[1771060386842,29.71109829,86.139,86.121,1.42926646]
[1771060387036,1.45467931,86.151,86.121,1.42926646]
[1771060387239,1.45467931,86.151,86.13,5.83160252]
[1771060387856,1.51585843,86.149,86.13,5.83160252]
[1771060389152,1.51585843,86.149,86.121,1.42926646]
[1771060389352,1.51585843,86.147,86.122,11.61143494]
[1771060389531,1.51585843,86.147,86.103,29.03499297]
[1771060389532,40.62775687,86.148,86.09,5.83160252]
[1771060389737,1.51585843,86.129,86.08,5.83160252]
[1771060390461,1.51585843,86.109,86.08,0.02134218]
[1771060390638,1.51585843,86.119,86.091,0.02134218]
[1771060391341,1.51585843,86.126,86.092,0.02654039]
[1771060391548,1.51585843,86.134,86.101,0.02654039]
[1771060393433,1.51585843,86.132,86.101,0.02654039]
[1771060395166,1.51585843,86.129,86.101,0.02654039]
[1771060395369,1.51585843,86.129,86.092,0.04172427]
[1771060395742,5.83160252,86.12,86.092,0.04172427]
[1771060396067,1.51585843,86.119,86.092,0.04172427]
[1771060397145,1.51585843,86.117,86.086,0.05162312]
[1771060399548,11.61197426,86.118,86.086,0.05162312]
[1771060399741,11.60856922,86.144,86.111,0.06604713]
[1771060401364,11.60856922,86.144,86.105,42.64]
[1771060401365,1.51585843,86.143,86.105,42.64]
[1771060401566,1.51585843,86.143,86.106,0.07532969]
[1771060401747,1.51585843,86.141,86.111,0.07532969]
[1771060403745,1.51585843,86.151,86.121,11.61156976]
[1771060403967,1.51585843,86.151,86.121,11.6959658]
[1771060404166,1.51585843,86.151,86.116,11.61213045]
[1771060404545,1.51585843,86.151,86.117,0.08886201]
[1771060404844,11.60750904,86.152,86.121,0.08886201]
[1771060406560,11.60658325,86.158,86.121,11.61156976]
[1771060406753,11.60658325,86.158,86.122,0.09760288]
[1771060406957,13.12244168,86.158,86.122,0.09760288]
[1771060407158,1.51585843,86.157,86.122,0.09760288]
[1771060407553,11.60658325,86.158,86.116,42.66]
[1771060407554,1.51585843,86.139,86.116,42.66]
[1771060408867,1.51585843,86.138,86.116,42.66]
[1771060409469,1.51585843,86.149,86.111,0.11039287]
[1771060409649,1.51585843,86.149,86.12,5.83160252]
[1771060409951,1.51585843,86.157,86.121,0.11039287]
[1771060410343,1.51585843,86.157,86.123,0.11039287]
[1771060411376,11.60727488,86.153,86.124,0.11865604]
[1771060412271,11.60727488,86.153,86.13,5.83160252]
[1771060412470,11.60727488,86.153,86.131,0.12672982]
[1771060413454,1.51585843,86.153,86.131,0.12672982]
[1771060413773,1.51585843,86.153,86.124,0.13070121]
[1771060414347,1.51585843,86.153,86.123,54.31130011]
[1771060414552,1.51585843,86.151,86.123,54.31130011]
[1771060414768,1.51585843,86.151,86.123,42.7]
[1771060415076,11.60739158,86.152,86.101,0.13464581]
[1771060415077,1.51585843,86.139,86.101,0.13464581]
[1771060415367,1.51585843,86.139,86.11,5.83160252]
[1771060415555,1.51585843,86.139,86.11,5.9701475]
[1771060416068,1.51585843,86.151,86.121,0.13854498]
[1771060416251,1.51585843,86.151,86.123,0.13854498]
[1771060417467,1.51585843,86.151,86.124,0.14614353]
[1771060418474,11.60766105,86.15,86.124,0.14614353]
[1771060418666,6.06427736,86.162,86.124,0.14614353]
[1771060418876,11.60658325,86.158,86.124,0.14614353]
[1771060419169,1.51585843,86.157,86.122,42.72]
[1771060419375,1.51585843,86.157,86.122,11.61141389]
[1771060419574,1.51585843,86.155,86.122,11.61141389]
[1771060420953,1.51680185,86.149,86.122,11.61141389]
[1771060421583,6.06427736,86.162,86.14,4.3e-07]
[1771060421762,11.6043323,86.175,86.141,42.74]
[1771060422083,11.60481061,86.172,86.141,42.74]
[1771060422553,1.59805279,86.176,86.141,42.74]
[1771060422876,6.06244618,86.182,86.15,5.83160252]
[1771060423177,1.59805279,86.18,86.142,11.60873905]
[1771060423359,1.59805279,86.178,86.142,11.60873905]
[1771060423964,1.59805279,86.176,86.131,11.61022163]
[1771060424265,11.60346997,86.182,86.15,5.83160252]
[1771060424464,6.06184777,86.194,86.17,5.83160252]
[1771060424872,1.59805279,86.198,86.17,5.83160252]
[1771060425474,1.59805279,86.198,86.171,11.60483225]
[1771060426275,1.59805279,86.197,86.171,11.60483225]
[1771060427387,1.59805279,86.197,86.167,42.74]
[1771060427388,1.59805279,86.195,86.167,42.74]
[1771060427883,11.60146642,86.196,86.15,5.83160252]
[1771060427884,1.59805279,86.189,86.15,5.83160252]
[1771060428067,1.59805279,86.189,86.151,54.36752632]
[1771060428464,1.59805279,86.179,86.143,42.76]
[1771060429270,11.60388962,86.178,86.143,42.76]
[1771060429471,11.60388962,86.178,86.144,11.60846953]
[1771060429472,1.59805279,86.177,86.144,11.60846953]
[1771060430590,1.59805279,86.177,86.143,42.76]
[1771060431171,1.59805279,86.177,86.1,5.82619498]
[1771060431172,1.59805279,86.159,86.132,11.61003777]
[1771060431371,1.59805279,86.157,86.132,11.61003777]
[1771060431587,1.59805279,86.157,86.13,42.8]
[1771060433089,1.59805279,86.157,86.131,0.03781317]
[1771060433296,11.60590972,86.163,86.131,11.61022163]
[1771060433599,1.59805279,86.179,86.141,0.04102249]
[1771060434573,1.59805279,86.178,86.142,0.04418566]
[1771060435207,1.59805279,86.178,86.141,11.60887382]
[1771060435380,1.59805279,86.178,86.133,11.65413396]
[1771060435381,17.33896259,86.17,86.133,11.65413396]
[1771060435696,1.59805279,86.169,86.133,54.4499483]
[1771060436979,1.59805279,86.167,86.133,54.4499483]
[1771060437176,1.59805279,86.167,86.133,11.6099483]
[1771060437481,1.59805279,86.167,86.134,42.84]
[1771060439169,11.60550565,86.166,86.134,42.84]
[1771060439373,1.59805279,86.165,86.134,42.84]
[1771060439689,1.59805279,86.159,86.134,42.84]
[1771060440789,1.59805279,86.184,86.151,0.06251122]
[1771060440974,1.59805279,86.184,86.144,0.06251122]
[1771060441688,1.59805279,86.179,86.145,42.92]
[1771060442092,1.59805279,86.169,86.145,42.92]
[1771060442290,1.59805279,86.169,86.144,42.94]
[1771060442491,1.59805279,86.169,86.142,42.94]
[1771060442999,1.59805279,86.167,86.142,42.94]
[1771060443376,11.60523628,86.168,86.118,0.07120644]
[1771060443377,17.33896259,86.15,86.118,0.07120644]
[1771060443576,17.33896259,86.15,86.051,52.26]
[1771060443577,1.58783195,86.149,86.114,16.2]
[1771060444477,1.58783195,86.149,86.115,1.53117362]
[1771060445176,1.58783195,86.147,86.115,1.53117362]
[1771060445686,1.58783195,86.147,86.114,16.2]
[1771060446288,11.60820003,86.146,86.114,16.2]
[1771060446488,1.58783195,86.145,86.114,16.2]
[1771060447702,1.58783195,86.143,86.102,1.53117362]
[1771060447880,1.58783195,86.139,86.109,1.53117362]
[1771060448282,1.58783195,86.129,86.099,1.53117362]
[1771060448604,1.58783195,86.143,86.111,1.53117362]
[1771060449484,1.58783195,86.143,86.113,1.53117362]
[1771060449693,1.58783195,86.155,86.121,1.53117362]
[1771060449886,13.19495408,86.154,86.123,1.53117362]
[1771060450083,1.58783195,86.153,86.123,1.53117362]
[1771060450287,1.58783195,86.149,86.114,1.53117362]
[1771060450682,11.60712213,86.154,86.114,1.53117362]
[1771060450898,11.60712213,86.154,86.121,1.53117362]
[1771060451399,1.58783195,86.157,86.131,1.53117362]
[1771060452284,1.58783195,86.157,86.133,1.53117362]
[1771060452892,11.60636087,86.16,86.133,1.53117362]
[1771060453088,1.58783195,86.149,86.118,1.53117362]
[1771060453291,17.33896259,86.15,86.1,17.33896259]
[1771060453292,1.58783195,86.139,86.112,43.0]
[1771060454496,1.58783195,86.137,86.112,43.0]
[1771060455704,1.58783195,86.129,86.099,1.53117362]
[1771060455910,1.58783195,86.129,86.1,1.53117362]
[1771060456489,6.06532927,86.14,86.121,1.53117362]
[1771060456692,61.3208463,86.16,86.131,1.53117362]
[1771060456693,11.60644854,86.159,86.131,1.53117362]
[1771060457094,1.58783195,86.158,86.131,1.53117362]
[1771060458514,11.60644854,86.159,86.131,1.53117362]
[1771060458693,11.60644854,86.159,86.133,1.53117362]
[1771060458898,11.60644854,86.159,86.134,1.53117362]
[1771060459989,32.30482163,86.16,86.141,1.53117362]
[1771060460615,11.60644854,86.159,86.141,1.53117362]
[1771060460795,30.62589098,86.16,86.141,0.22153932]
[1771060460999,11.60261799,86.188,86.15,17.34284297]
[1771060461206,11.60261799,86.188,86.16,17.34284297]
[1771060461498,1.68165311,86.187,86.16,17.34284297]
[1771060463010,1.68165311,86.187,86.161,11.60617912]
[1771060463189,11.60106265,86.199,86.162,43.08]
[1771060463394,1.68165311,86.198,86.163,0.02028291]
[1771060463807,1.68165311,86.198,86.171,0.02028291]
[1771060464407,1.68165311,86.198,86.18,17.34284297]
[1771060464607,0.2,86.2,86.181,0.02687092]
[1771060465315,0.2,86.2,86.182,0.02687092]
[1771060465501,0.2,86.2,86.182,43.12687092]
[1771060465894,0.2,86.2,86.183,0.03339587]
[1771060466110,0.2,86.2,86.184,43.1]
[1771060466691,0.2,86.2,86.184,43.13984586]
[1771060468394,1.88165311,86.2,86.184,43.1]
[1771060468594,1.68165311,86.198,86.184,43.1]
[1771060469613,1.68165311,86.199,86.184,43.1]
[1771060469917,1.68165311,86.199,86.184,41.70388743]
[1771060470715,1.68165311,86.197,86.169,43.18]
[1771060471624,1.68165311,86.197,86.167,43.2]
[1771060472222,1.68165311,86.195,86.163,0.05873538]
[1771060472399,1.68165311,86.195,86.161,43.2]
[1771060474119,1.68165311,86.193,86.161,43.2]
[1771060477236,1.68165311,86.191,86.161,43.2]
[1771060477712,1.68165311,86.189,86.161,43.2]
[1771060478419,1.68165311,86.187,86.161,43.2]
[1771060480934,1.68165311,86.185,86.161,43.2]
[1771060482537,1.68165311,86.185,86.147,11.60795474]
[1771060482828,1.68165311,86.185,86.148,0.13121639]
[1771060483006,1.68165311,86.183,86.151,0.13121639]
[1771060484135,1.68165311,86.181,86.152,0.13556445]
[1771060484930,1.68165311,86.181,86.15,5.82446936]
[1771060485328,1.68165311,86.179,86.146,43.45986458]